bitfinex/quotes_BTCUSD_20250616
["timestamp","ask_amount","ask_price","bid_price","bid_amount"]
[1750035400204,4.79504285,105570.0,105560.0,0.51029655]
[1750035400823,4.780502,105570.0,105560.0,0.4607822]
[1750035401002,4.780502,105570.0,105560.0,0.48351041]
[1750035405242,4.780502,105570.0,105560.0,0.08802821]
[1750035405451,4.780502,105570.0,105560.0,0.48351041]
[1750035408495,0.05006254,105590.0,105560.0,0.50087949]
[1750035408696,4.49056454,105590.0,105580.0,0.4561822]
[1750035408856,4.83056454,105590.0,105580.0,0.4561822]
[1750035409059,0.36123619,105590.0,105580.0,0.47891021]
[1750035409489,0.36123619,105590.0,105580.0,0.47889879]
[1750035409698,0.02123619,105590.0,105580.0,0.63429879]
[1750035409904,0.00047208,105590.0,105580.0,0.68218867]
[1750035410103,0.00047208,105590.0,105580.0,0.77843043]
[1750035410686,0.00047208,105590.0,105580.0,0.8068417]
[1750035411333,0.00047208,105590.0,105580.0,0.8078417]
[1750035411535,0.00047208,105590.0,105580.0,0.80043182]
[1750035411700,0.00047208,105590.0,105580.0,0.83822725]
[1750035412382,0.00047208,105590.0,105580.0,0.80043182]
[1750035413419,0.00047208,105590.0,105580.0,0.60455182]
[1750035413631,0.00047208,105590.0,105580.0,0.80039182]
[1750035413843,0.00047208,105590.0,105580.0,0.891774]
[1750035414049,0.01795948,105620.0,105610.0,0.4595822]
[1750035414263,0.07558936,105630.0,105610.0,0.6149422]
[1750035414477,0.10472993,105630.0,105620.0,0.4595822]
[1750035414686,0.10472993,105630.0,105620.0,0.49111473]
[1750035415306,0.10472993,105630.0,105620.0,0.4595822]
[1750035415728,0.10472993,105630.0,105620.0,0.45972412]
[1750035415996,0.10472993,105630.0,105620.0,0.06424192]
[1750035416195,4.88523193,105630.0,105620.0,0.15550192]
[1750035416376,4.90364875,105630.0,105620.0,0.15550192]
[1750035416607,4.90364875,105630.0,105620.0,0.00014192]
[1750035417045,4.90364875,105630.0,105620.0,0.03294192]
[1750035417585,4.82805939,105630.0,105620.0,0.06324192]
[1750035421292,4.79891882,105630.0,105620.0,0.12464633]
[1750035421527,4.79891882,105630.0,105620.0,0.45872412]
[1750035422244,4.79891882,105630.0,105620.0,0.06324192]
[1750035422980,4.79891882,105630.0,105620.0,0.03294192]
[1750035423450,4.9384227,105630.0,105620.0,0.00014192]
[1750035423700,5.7379748,105630.0,105620.0,0.00014192]
[1750035423950,5.98064136,105630.0,105620.0,0.00014192]
[1750035424201,5.92642372,105630.0,105620.0,0.00014192]
[1750035424706,5.91695708,105630.0,105620.0,0.00014192]
[1750035425124,5.90749026,105630.0,105620.0,0.00014192]
[1750035428483,5.71177026,105630.0,105620.0,0.00014192]
[1750035428696,5.4262809,105630.0,105620.0,0.00014192]
[1750035428902,5.63146772,105630.0,105620.0,0.00014192]
[1750035429311,5.8397407,105630.0,105620.0,0.00014192]
[1750035429763,5.49508056,105630.0,105620.0,0.00014192]
[1750035429985,5.65986747,105630.0,105620.0,0.00014192]
[1750035430200,5.84920761,105630.0,105620.0,0.00014192]
[1750035430419,5.65986747,105630.0,105620.0,0.00014192]
[1750035431125,5.84920832,105630.0,105620.0,0.00014192]
[1750035431546,5.93589099,105630.0,105620.0,0.00014192]
[1750035432405,5.92642417,105630.0,105620.0,0.00014192]
[1750035433050,5.83027495,105630.0,105620.0,0.00014192]
[1750035433660,5.25491854,105630.0,105620.0,0.00014192]
[1750035433877,5.65986774,105630.0,105620.0,0.00014192]
[1750035434733,5.65040074,105630.0,105620.0,0.00014192]
[1750035435351,5.8302745,105630.0,105620.0,0.00014192]
[1750035436242,5.92642372,105630.0,105620.0,0.00014192]
[1750035436808,5.91695708,105630.0,105620.0,0.00014192]
[1750035439051,5.72761667,105630.0,105620.0,0.00014192]
[1750035439246,5.74654978,105630.0,105620.0,0.00014192]
[1750035440478,5.54136296,105630.0,105620.0,0.00014192]
[1750035440682,5.71388969,105630.0,105620.0,0.00014192]
[1750035440861,5.61774047,105630.0,105620.0,0.00014192]
[1750035441071,5.60827374,105630.0,105620.0,0.00014192]
[1750035441271,5.41251374,105630.0,105620.0,0.00014192]
[1750035441484,5.1626587,105630.0,105620.0,0.03114192]
[1750035441681,5.17212499,105630.0,105620.0,0.03114192]
[1750035442301,5.1626587,105630.0,105620.0,0.03114192]
[1750035442534,5.6637565,105630.0,105620.0,0.00014192]
[1750035442899,5.6961565,105630.0,105620.0,0.00014192]
[1750035443101,5.70562296,105630.0,105620.0,0.00014192]
[1750035443991,5.71508951,105630.0,105620.0,0.00014192]
[1750035444424,5.9233632,105630.0,105620.0,0.00014192]
[1750035444672,5.72455668,105630.0,105620.0,0.00014192]
[1750035445656,5.72455659,105630.0,105620.0,0.00014192]
[1750035445857,5.71508977,105630.0,105620.0,0.00014192]
[1750035446077,5.72455659,105630.0,105620.0,0.00014192]
[1750035446478,5.7245565,105630.0,105620.0,0.00014192]
[1750035447348,5.70554278,105630.0,105620.0,0.00014192]
[1750035448052,5.71500933,105630.0,105620.0,0.00014192]
[1750035448505,5.72447606,105630.0,105620.0,0.00014192]
[1750035449215,5.51932933,105630.0,105620.0,0.00014192]
[1750035449440,5.50986278,105630.0,105620.0,0.00014192]
[1750035449679,5.57699339,105630.0,105620.0,0.00014192]
[1750035449887,5.58645985,105630.0,105620.0,0.00014192]
[1750035450580,5.58645977,105630.0,105620.0,0.00014192]
[1750035452351,5.53659356,105630.0,105620.0,0.03154192]
[1750035452569,5.5460602,105630.0,105620.0,0.00014192]
[1750035452827,5.67480942,105630.0,105620.0,0.00014192]
[1750035453686,5.65587632,105630.0,105620.0,0.00014192]
[1750035453890,5.6653427,105630.0,105620.0,0.00014192]
[1750035454309,5.64220925,105630.0,105620.0,0.00014192]
[1750035454955,5.65167598,105630.0,105620.0,0.00014192]
[1750035455185,5.68457598,105630.0,105620.0,0.00014192]
[1750035455580,5.69404289,105630.0,105620.0,0.00014192]
[1750035455819,5.68457598,105630.0,105620.0,0.00014192]
[1750035457491,5.67510925,105630.0,105620.0,0.00014192]
[1750035457646,5.6327427,105630.0,105620.0,0.00014192]
[1750035458214,5.64220925,105630.0,105620.0,0.00014192]
[1750035458444,5.3718471,105630.0,105620.0,0.03324192]
[1750035458650,5.57699356,105630.0,105620.0,0.03324192]
[1750035459454,5.58646011,105630.0,105620.0,0.03324192]
[1750035459880,5.53659348,105630.0,105620.0,0.03324192]
[1750035460504,5.54605994,105630.0,105620.0,0.03324192]
[1750035461714,5.3623809,105630.0,105620.0,0.03324192]
[1750035461924,5.28180609,105630.0,105620.0,0.03324192]
[1750035462131,5.2818069,105630.0,105620.0,0.03324192]
[1750035462333,5.2912731,105630.0,105620.0,0.03324192]
[1750035463144,5.30073948,105630.0,105620.0,0.03324192]
[1750035463356,4.8863247,105630.0,105620.0,0.06604192]
[1750035463568,4.8863247,105630.0,105620.0,0.07264611]
[1750035463569,4.7310447,105630.0,105620.0,0.07264611]
[1750035463798,4.8863247,105630.0,105620.0,0.07264611]
[1750035464020,4.8863247,105630.0,105620.0,0.06604192]
[1750035464484,4.7310447,105630.0,105620.0,0.06604192]
[1750035466336,5.32287328,105630.0,105620.0,0.00014192]
[1750035466567,5.33233974,105630.0,105620.0,0.00014192]
[1750035467314,5.34180638,105630.0,105620.0,0.00014192]
[1750035467726,5.42848896,105630.0,105620.0,0.00014192]
[1750035468080,5.46008896,105630.0,105620.0,0.00014192]
[1750035468429,5.65889609,105630.0,105620.0,0.00014192]
[1750035468853,5.46955595,105630.0,105620.0,0.00014192]
[1750035469064,5.65889609,105630.0,105620.0,0.00014192]
[1750035469863,5.56274687,105630.0,105620.0,0.00014192]
[1750035471551,5.53427087,105630.0,105620.0,0.00014192]
[1750035472674,5.50263087,105630.0,105620.0,0.00014192]
[1750035472899,5.14754867,105630.0,105620.0,0.00014192]
[1750035473090,5.36315773,105630.0,105620.0,0.00014192]
[1750035473751,5.35369073,105630.0,105620.0,0.00014192]
[1750035474542,5.15805064,105630.0,105620.0,0.00014192]
[1750035474743,5.35369055,105630.0,105620.0,0.00014192]
[1750035475601,5.1296509,105630.0,105620.0,0.00014192]
[1750035475837,4.8982087,105630.0,105620.0,0.03024192]
[1750035476036,5.3031571,105630.0,105620.0,0.03024192]
[1750035478870,5.0980509,105630.0,105620.0,0.06324192]
[1750035479042,4.7025687,105630.0,105620.0,0.06324192]
[1750035479229,4.8578087,105630.0,105620.0,0.06324192]
[1750035479799,4.7025687,105630.0,105620.0,0.06324192]
[1750035481369,4.60632694,105630.0,105620.0,0.06324192]
[1750035486647,4.59178609,105630.0,105620.0,0.06324192]
[1750035486861,0.38713809,105630.0,105620.0,0.06324192]
[1750035487068,0.38713809,105630.0,105620.0,0.08597179]
[1750035487714,0.38713809,105630.0,105620.0,0.13695914]
[1750035492052,0.35841682,105630.0,105620.0,0.13932594]
[1750035492435,0.35841682,105630.0,105620.0,0.13695914]
[1750035494153,0.35841682,105630.0,105620.0,0.08597179]
[1750035495701,0.35841682,105630.0,105620.0,0.06324192]
[1750035499331,4.98255416,105630.0,105620.0,0.03024192]
[1750035499568,5.16172911,105630.0,105620.0,0.00014192]
[1750035499779,5.16172902,105630.0,105620.0,0.00014192]
[1750035500509,5.17119584,105630.0,105620.0,0.00014192]
[1750035500871,5.25787877,105630.0,105620.0,0.00014192]
[1750035501072,5.44721945,105630.0,105620.0,0.00014192]
[1750035501955,5.25787931,105630.0,105620.0,0.00014192]
[1750035505848,5.41307931,105630.0,105620.0,0.00014192]
[1750035506050,5.60241945,105630.0,105620.0,0.00014192]
[1750035508841,5.52308465,105630.0,105620.0,0.00014192]
[1750035509061,5.49680359,105630.0,105620.0,0.00014192]
[1750035509542,5.35728903,105630.0,105620.0,0.00014192]
[1750035509770,5.3478223,105630.0,105620.0,0.00014192]
[1750035510008,4.77820743,105630.0,105620.0,0.00014192]
[1750035510219,4.82904743,105630.0,105620.0,0.03064192]
[1750035511994,4.67384743,105630.0,105620.0,0.03064192]
[1750035512272,4.82904743,105630.0,105620.0,0.06114192]
[1750035512489,4.82904743,105630.0,105620.0,0.03064192]
[1750035513177,4.67384743,105630.0,105620.0,0.03064192]
[1750035513369,4.82904743,105630.0,105620.0,0.03064192]
[1750035513589,4.82904743,105630.0,105620.0,0.00014192]
[1750035513590,5.28732963,105630.0,105620.0,0.00014192]
[1750035513803,5.26659583,105630.0,105620.0,0.00014192]
[1750035514683,5.25712963,105630.0,105620.0,0.00014192]
[1750035515130,5.37221134,105630.0,105620.0,0.00014192]
[1750035515345,5.3816778,105630.0,105620.0,0.00014192]
[1750035516251,5.0416778,105630.0,105620.0,0.00014192]
[1750035516475,4.95499522,105630.0,105620.0,0.00014192]
[1750035516908,4.95499513,105630.0,105620.0,0.00014192]
[1750035517566,4.94552858,105630.0,105620.0,0.00014192]
[1750035517779,4.93606212,105630.0,105620.0,0.00014192]
[1750035518210,4.9455285,105630.0,105620.0,0.00014192]
[1750035519790,4.93606212,105630.0,105620.0,0.00014192]
[1750035520488,4.92659583,105630.0,105620.0,0.00014192]
[1750035521126,5.26659583,105630.0,105620.0,0.00014192]
[1750035522390,5.06932963,105630.0,105620.0,0.03124192]
[1750035522577,5.22452963,105630.0,105620.0,0.06244192]
[1750035523370,5.06932963,105630.0,105620.0,0.06244192]
[1750035523607,4.67384743,105630.0,105620.0,0.06244192]
[1750035523789,4.56306482,105630.0,105620.0,0.06868611]
[1750035524022,0.01841682,105630.0,105620.0,0.48925232]
[1750035524237,0.02863064,105640.0,105630.0,0.0611]
[1750035524454,0.02863064,105640.0,105630.0,0.08381718]
[1750035524664,4.204648,105650.0,105640.0,0.0611]
[1750035524882,4.22806982,105650.0,105640.0,0.0611]
[1750035525148,4.56806993,105650.0,105640.0,0.0611]
[1750035525363,4.55918885,105650.0,105640.0,0.0611]
[1750035525601,4.57450298,105650.0,105640.0,0.0611]
[1750035530733,4.96998518,105650.0,105640.0,0.0306]
[1750035533441,4.97886047,105650.0,105640.0,0.0306]
[1750035533935,4.97944958,105650.0,105640.0,0.0306]
[1750035534195,4.96998518,105650.0,105640.0,0.0306]
[1750035534430,4.98832479,105650.0,105640.0,0.0306]
[1750035534699,4.98832466,105650.0,105640.0,0.0306]
[1750035534945,4.544648,105640.0,105630.0,0.0626]
[1750035535411,4.55352263,105640.0,105630.0,0.0626]
[1750035535641,4.544648,105640.0,105630.0,0.0626]
[1750035536313,4.55352262,105640.0,105630.0,0.0626]
[1750035536594,4.544648,105640.0,105630.0,0.0626]
[1750035536820,4.55352262,105640.0,105630.0,0.0626]
[1750035537038,4.544648,105640.0,105630.0,0.0626]
[1750035537261,4.55352262,105640.0,105630.0,0.0626]
[1750035537482,4.544648,105640.0,105630.0,0.0626]
[1750035538005,4.55352262,105640.0,105630.0,0.0626]
[1750035538466,4.55352263,105640.0,105630.0,0.0626]
[1750035538693,4.55352264,105640.0,105630.0,0.0626]
[1750035538927,4.55352261,105640.0,105630.0,0.0626]
[1750035539171,4.55352255,105640.0,105630.0,0.0626]
[1750035539372,4.55352252,105640.0,105630.0,0.0626]
[1750035539524,4.544648,105640.0,105630.0,0.0626]
[1750035539934,4.55352263,105640.0,105630.0,0.0626]
[1750035540550,4.55352264,105640.0,105630.0,0.0626]
[1750035541035,4.55352265,105640.0,105630.0,0.0626]
[1750035541489,4.55352264,105640.0,105630.0,0.0626]
[1750035542644,4.544648,105640.0,105630.0,0.0626]
[1750035542851,4.94900476,105640.0,105620.0,0.32924192]
[1750035543105,4.204648,105630.0,105620.0,0.38282257]
[1750035543310,4.204648,105630.0,105620.0,0.36014192]
[1750035543740,4.2135227,105630.0,105620.0,0.36014192]
[1750035543944,4.2135227,105630.0,105620.0,0.29894192]
[1750035543945,4.94900483,105630.0,105620.0,0.29894192]
[1750035544152,5.0926791,105630.0,105620.0,0.29894192]
[1750035545434,5.08321281,105630.0,105620.0,0.29894192]
[1750035547661,5.08321281,105630.0,105620.0,0.00014192]
[1750035548729,5.09267901,105630.0,105620.0,0.00014192]
[1750035549128,5.19829461,105630.0,105620.0,0.00014192]
[1750035549329,5.23019452,105630.0,105620.0,0.00014192]
[1750035549681,5.18882823,105630.0,105620.0,0.00014192]
[1750035550108,5.17936203,105630.0,105620.0,0.00014192]
[1750035550985,5.08321281,105630.0,105620.0,0.00014192]
[1750035551170,5.23833281,105630.0,105620.0,0.00014192]
[1750035551894,5.2477991,105630.0,105620.0,0.00014192]
[1750035553165,5.2762721,105630.0,105620.0,0.00014192]
[1750035553378,5.28573865,105630.0,105620.0,0.00014192]
[1750035553555,5.4143877,105630.0,105620.0,0.00014192]
[1750035553790,5.43332107,105630.0,105620.0,0.00014192]
[1750035553998,5.42385416,105630.0,105620.0,0.00014192]
[1750035554414,5.32770494,105630.0,105620.0,0.00014192]
[1750035555405,5.31823848,105630.0,105620.0,0.00014192]
[1750035555631,4.68390361,105630.0,105620.0,0.03224192]
[1750035555836,4.83902361,105630.0,105620.0,0.06334192]
[1750035557637,4.68390361,105630.0,105620.0,0.06334192]
[1750035557853,4.68390361,105630.0,105620.0,0.03224192]
[1750035560125,4.69336981,105630.0,105620.0,0.03224192]
[1750035560336,4.68390361,105630.0,105620.0,0.03224192]
[1750035562151,4.68390361,105630.0,105620.0,0.06899611]
[1750035562378,4.544648,105630.0,105620.0,0.06899611]
[1750035563597,4.544648,105630.0,105620.0,0.06254192]
[1750035569501,0.34,105630.0,105620.0,0.4807454]
[1750035569751,0.34,105630.0,105620.0,0.0852632]
[1750035573606,0.34,105630.0,105620.0,0.48311215]
[1750035573825,0.34,105630.0,105620.0,0.48075209]
[1750035574034,0.34,105630.0,105620.0,0.08526989]
[1750035574234,0.34,105630.0,105620.0,0.18378583]
[1750035574450,0.34,105630.0,105620.0,0.08763661]
[1750035574661,0.34,105630.0,105620.0,0.08526989]
[1750035576816,0.34,105630.0,105620.0,0.08763661]
[1750035577841,0.34,105630.0,105620.0,0.48311881]
[1750035578071,0.34,105630.0,105620.0,0.48075209]
[1750035578202,0.34,105630.0,105620.0,0.08526989]
[1750035578404,0.34,105630.0,105620.0,0.08763661]
[1750035578615,0.34,105630.0,105620.0,0.08526989]
[1750035579717,0.34,105630.0,105620.0,0.08763661]
[1750035580484,0.34,105630.0,105620.0,0.08526989]
[1750035585294,0.34,105630.0,105620.0,0.18141911]
[1750035585501,0.34,105630.0,105620.0,0.18378583]
[1750035586200,0.34,105630.0,105620.0,0.18141911]
[1750035586476,0.34,105630.0,105620.0,0.08526989]
[1750035590515,0.34,105630.0,105620.0,0.48311882]
[1750035590722,0.34,105630.0,105620.0,0.48075209]
[1750035590968,0.34,105630.0,105620.0,0.08526989]
[1750035591189,0.34,105630.0,105620.0,0.08763657]
[1750035591408,0.34,105630.0,105620.0,0.18378579]
[1750035591858,0.34,105630.0,105620.0,0.08763657]
[1750035591968,0.34,105630.0,105620.0,0.38643657]
[1750035592186,0.34,105630.0,105620.0,0.38406989]
[1750035592953,0.34,105630.0,105620.0,0.77955209]
[1750035593907,0.34,105630.0,105620.0,0.38406989]
[1750035594102,0.34,105630.0,105620.0,0.77955209]
[1750035595039,0.34,105630.0,105620.0,0.38406989]
[1750035595258,0.34,105630.0,105620.0,0.77955209]
[1750035595858,0.34,105630.0,105620.0,0.38406989]
[1750035597590,0.34,105630.0,105620.0,0.41247986]
[1750035598927,0.34,105630.0,105620.0,0.80796206]
[1750035599838,0.34,105630.0,105620.0,0.41247986]
[1750035600235,0.3728,105630.0,105620.0,0.17790989]
[1750035600468,0.34,105630.0,105620.0,0.17790989]
[1750035601247,0.34,105630.0,105620.0,0.21100989]
[1750035602856,0.34,105630.0,105620.0,0.76135128]
[1750035603934,4.204648,105640.0,105630.0,0.0617]
[1750035604142,0.34,105640.0,105630.0,0.38559447]
[1750035604355,0.34,105640.0,105630.0,0.35292797]
[1750035604561,0.34,105640.0,105630.0,0.47652797]
[1750035604780,0.34,105640.0,105630.0,0.32152797]
[1750035604973,0.34,105640.0,105630.0,0.47652797]
[1750035606060,0.34,105640.0,105630.0,0.32152797]
[1750035606282,0.34887562,105640.0,105630.0,0.47652797]
[1750035606490,0.34,105640.0,105630.0,0.47652797]
[1750035607123,0.34887438,105640.0,105630.0,0.47652797]
[1750035607331,0.34887398,105640.0,105630.0,0.47652797]
[1750035607544,0.34,105640.0,105630.0,0.47652797]
[1750035608540,0.33985799,105640.0,105630.0,0.47652797]
[1750035608751,0.3487326,105640.0,105630.0,0.47652797]
[1750035608952,0.34873251,105640.0,105630.0,0.47652797]
[1750035609176,0.34873253,105640.0,105630.0,0.47652797]
[1750035609597,0.3487325,105640.0,105630.0,0.55235505]
[1750035609751,0.33985799,105640.0,105630.0,0.28635505]
[1750035609950,0.33985799,105640.0,105630.0,0.21052797]
[1750035610393,0.34873239,105640.0,105630.0,0.21052797]
[1750035610729,0.34873237,105640.0,105630.0,0.21052797]
[1750035611982,0.33985799,105640.0,105630.0,0.21052797]
[1750035612386,0.34873237,105640.0,105630.0,0.21052797]
[1750035612800,0.34873232,105640.0,105630.0,0.21052797]
[1750035613005,0.33985799,105640.0,105630.0,0.21052797]
[1750035613207,0.34873232,105640.0,105630.0,0.21052797]
[1750035613422,0.34873231,105640.0,105630.0,0.21052797]
[1750035613630,0.33985799,105640.0,105630.0,0.21052797]
[1750035613842,0.34873232,105640.0,105630.0,0.21052797]
[1750035614116,0.34873231,105640.0,105630.0,0.21052797]
[1750035614509,0.34873232,105640.0,105630.0,0.21052797]
[1750035615275,0.33985799,105640.0,105630.0,0.05552797]
[1750035615474,0.34873231,105640.0,105630.0,0.21052797]
[1750035616308,0.34873232,105640.0,105630.0,0.21052797]
[1750035616690,0.33985799,105640.0,105630.0,0.21052797]
[1750035617004,0.34873232,105640.0,105630.0,0.21052797]
[1750035617619,0.33985799,105640.0,105630.0,0.21052797]
[1750035617816,0.34873232,105640.0,105630.0,0.21052797]
[1750035618039,0.33985799,105640.0,105630.0,0.21052797]
[1750035618450,0.34873232,105640.0,105630.0,0.21052797]
[1750035618654,0.33985799,105640.0,105630.0,0.21052797]
[1750035618851,0.34873232,105640.0,105630.0,0.21052797]
[1750035619711,0.33985799,105640.0,105630.0,0.21052797]
[1750035620048,0.34873232,105640.0,105630.0,0.21052797]
[1750035620258,0.33985799,105640.0,105630.0,0.21052797]
[1750035620474,0.34873232,105640.0,105630.0,0.21052797]
[1750035620685,0.76574019,105640.0,105630.0,0.02272797]
[1750035620901,0.88904286,105640.0,105630.0,0.02272797]
[1750035621116,5.00168819,105640.0,105630.0,0.02272797]
[1750035621562,4.544648,105630.0,105620.0,0.45390192]
[1750035621800,4.544648,105630.0,105620.0,0.47664179]
[1750035622021,4.544648,105630.0,105620.0,0.56550697]
[1750035622651,4.544648,105630.0,105620.0,0.59600697]
[1750035622988,4.544648,105630.0,105620.0,0.99148917]
[1750035623203,4.544648,105630.0,105620.0,0.53914179]
[1750035623600,0.34,105630.0,105620.0,0.53914179]
[1750035625767,0.34,105630.0,105620.0,0.50864179]
[1750035627279,0.34,105630.0,105620.0,0.50588179]
[1750035630650,0.37704,105630.0,105620.0,0.35092179]
[1750035630859,5.55270154,105630.0,105620.0,0.02273987]
[1750035631061,5.66348415,105630.0,105620.0,0.02273987]
[1750035631277,4.607548,105620.0,105610.0,0.15496]
[1750035631480,4.574948,105620.0,105610.0,0.62242433]
[1750035631696,0.34,105620.0,105610.0,0.70126133]
[1750035631907,0.34,105620.0,105610.0,0.68292433]
[1750035633056,0.34,105620.0,105610.0,0.23833407]
[1750035635230,0.34,105620.0,105610.0,0.17783407]
[1750035635460,0.3704,105620.0,105610.0,0.17783407]
[1750035636080,0.34,105620.0,105610.0,0.17783407]
[1750035636192,4.204648,105620.0,105610.0,0.31098311]
[1750035636431,4.204648,105630.0,105620.0,0.0641]
[1750035636639,0.07831413,105650.0,105620.0,0.0641]
[1750035636640,4.204648,105640.0,105630.0,0.0321]
[1750035636864,4.204648,105640.0,105630.0,0.05483197]
[1750035637060,4.544648,105640.0,105630.0,0.05483197]
[1750035638085,4.67099722,105640.0,105630.0,0.02273197]
[1750035638299,4.70289722,105640.0,105620.0,0.18546]
[1750035638514,4.204648,105630.0,105620.0,0.2081763]
[1750035638720,4.204648,105630.0,105620.0,0.2410763]
[1750035639838,4.204648,105630.0,105620.0,0.2081763]
[1750035639984,4.204648,105630.0,105620.0,0.2389763]
[1750035641378,4.038579,105630.0,105620.0,0.2389763]
[1750035641662,4.038579,105630.0,105620.0,0.0532163]
[1750035641875,4.038579,105630.0,105620.0,0.2081763]
[1750035642297,4.038579,105630.0,105620.0,0.50435822]
[1750035646798,4.46435616,105630.0,105620.0,0.31889822]
[1750035647009,4.069279,105630.0,105620.0,0.47385822]
[1750035648284,4.069279,105630.0,105620.0,0.1776763]
[1750035648482,4.069279,105630.0,105620.0,0.0227163]
[1750035648713,4.038579,105630.0,105620.0,0.0227163]
[1750035653016,4.070179,105630.0,105620.0,0.0227163]
[1750035654265,4.49605616,105630.0,105620.0,0.0227163]
[1750035655086,4.83605616,105630.0,105620.0,0.0227163]
[1750035657396,0.0306,105620.0,105610.0,0.29632402]
[1750035657606,0.0306,105620.0,105610.0,0.31905379]
[1750035659155,4.100079,105620.0,105610.0,0.31905379]
[1750035659566,4.49515616,105620.0,105610.0,0.31905379]
[1750035659786,4.93130538,105620.0,105610.0,0.31905379]
[1750035660168,4.83515616,105620.0,105610.0,0.31905379]
[1750035660347,4.83515616,105620.0,105610.0,0.02287187]
[1750035660593,4.84462325,105620.0,105610.0,0.02287187]
[1750035661015,4.83515616,105620.0,105610.0,0.02287187]
[1750035662703,4.84462325,105620.0,105610.0,0.02287187]
[1750035662926,4.440079,105620.0,105610.0,0.0001421]
[1750035663136,4.83515616,105620.0,105610.0,0.0001421]
[1750035663340,4.94077247,105620.0,105610.0,0.0001421]
[1750035663559,4.93130538,105620.0,105610.0,0.0001421]
[1750035663789,4.83515616,105620.0,105610.0,0.0001421]
[1750035665053,4.95540604,105620.0,105610.0,0.0001421]
[1750035665256,4.94593877,105620.0,105610.0,0.0001421]
[1750035665473,4.95540595,105620.0,105610.0,0.0001421]
[1750035665889,4.96487331,105620.0,105610.0,0.0001421]
[1750035666095,4.95540595,105620.0,105610.0,0.0001421]
[1750035666499,4.94593877,105620.0,105610.0,0.0001421]
[1750035666706,4.95540595,105620.0,105610.0,0.0001421]
[1750035667149,4.94593877,105620.0,105610.0,0.0001421]
[1750035667802,4.95540595,105620.0,105610.0,0.0001421]
[1750035668039,4.96487322,105620.0,105610.0,0.0001421]
[1750035668270,4.95540595,105620.0,105610.0,0.0001421]
[1750035669920,4.94593877,105620.0,105610.0,0.0001421]
[1750035671945,4.91503877,105620.0,105610.0,0.0001421]
[1750035676266,4.378579,105620.0,105610.0,0.0001421]
[1750035676517,4.39311985,105620.0,105610.0,0.0001421]
[1750035676719,4.39311985,105620.0,105610.0,0.0319421]
[1750035676941,4.83768258,105620.0,105610.0,0.0319421]
[1750035678569,4.9947318,105620.0,105610.0,0.0001421]
[1750035678785,4.86768258,105620.0,105610.0,0.0001421]
[1750035679006,4.39311985,105620.0,105610.0,0.0001421]
[1750035679208,4.39311985,105620.0,105610.0,0.0319421]
[1750035679407,4.39311985,105620.0,105610.0,0.05466163]
[1750035682141,4.39311985,105620.0,105610.0,0.0319421]
[1750035682314,4.39311985,105620.0,105610.0,0.05466818]
[1750035682572,4.39311985,105620.0,105610.0,0.02286818]
[1750035683384,4.39311985,105620.0,105610.0,0.02287264]
[1750035684289,4.95523977,105620.0,105610.0,0.02287264]
[1750035684513,5.20640153,105620.0,105610.0,0.0001421]
[1750035684740,5.2158688,105620.0,105610.0,0.0001421]
[1750035685412,5.10078522,105620.0,105610.0,0.02288453]
[1750035685629,5.11025231,105620.0,105610.0,0.02288453]
[1750035685838,5.11025231,105620.0,105610.0,0.0001421]
[1750035686067,5.11971958,105620.0,105610.0,0.02288454]
[1750035688163,4.95533231,105620.0,105610.0,0.02288454]
[1750035688412,5.11971967,105620.0,105610.0,0.02288454]
[1750035688626,5.11025231,105620.0,105610.0,0.02288454]
[1750035689247,5.10753231,105620.0,105610.0,0.02288454]
[1750035689453,5.11699949,105620.0,105610.0,0.02288454]
[1750035691594,5.13593439,105620.0,105610.0,0.02288454]
[1750035691810,5.23208361,105620.0,105610.0,0.02288454]
[1750035692035,5.12646685,105620.0,105610.0,0.02288454]
[1750035692251,5.12646685,105620.0,105610.0,0.0001421]
[1750035692476,5.13593439,105620.0,105610.0,0.0001421]
[1750035693124,5.12646685,105620.0,105610.0,0.0001421]
[1750035693335,5.24155151,105620.0,105610.0,0.0001421]
[1750035693803,5.23208442,105620.0,105610.0,0.0001421]
[1750035695456,5.24155232,105620.0,105610.0,0.0001421]
[1750035695910,5.22261661,105620.0,105610.0,0.0001421]
[1750035696135,5.12646739,105620.0,105610.0,0.0001421]
[1750035697458,4.51714161,105620.0,105610.0,0.0001421]
[1750035697779,0.0321,105640.0,105620.0,0.0628]
[1750035698038,4.13210076,105640.0,105630.0,0.0321]
[1750035698326,4.86730437,105640.0,105630.0,0.0321]
[1750035698570,4.86730437,105640.0,105610.0,0.42375568]
[1750035698571,4.375859,105630.0,105610.0,0.09135207]
[1750035698814,4.43106261,105620.0,105610.0,0.0549776]
[1750035699063,4.43106261,105620.0,105610.0,0.0856776]
[1750035699064,4.77106261,105620.0,105610.0,0.0856776]
[1750035699325,4.79899919,105620.0,105610.0,0.0856776]
[1750035699549,4.375859,105620.0,105610.0,0.0856776]
[1750035699786,4.77106261,105620.0,105610.0,0.0856776]
[1750035700264,4.77106261,105620.0,105610.0,0.0549776]
[1750035701495,4.77106261,105620.0,105610.0,0.0881776]
[1750035703176,4.77070653,105620.0,105610.0,0.0881776]
[1750035708140,4.77070653,105620.0,105610.0,0.0881736]
[1750035709512,4.77070653,105620.0,105610.0,0.0549736]
[1750035709773,4.834287,105620.0,105610.0,0.0228736]
[1750035709999,4.80410653,105620.0,105610.0,0.0278736]
[1750035710224,4.80410653,105620.0,105610.0,0.0051421]
[1750035710446,4.77170653,105620.0,105610.0,0.0051421]
[1750035710908,4.77170653,105620.0,105610.0,0.02787413]
[1750035712847,4.97863836,105620.0,105610.0,0.02787413]
[1750035713078,5.04173836,105620.0,105610.0,0.0051421]
[1750035713296,5.01123836,105620.0,105610.0,0.0051421]
[1750035714636,4.91508914,105620.0,105610.0,0.0051421]
[1750035714840,4.91508914,105620.0,105610.0,0.02787416]
[1750035715045,5.07132914,105620.0,105610.0,0.02787416]
[1750035716770,5.08079623,105620.0,105610.0,0.02787416]
[1750035717000,5.13165104,105620.0,105610.0,0.0051421]
[1750035717234,5.23726807,105620.0,105610.0,0.0051421]
[1750035717868,5.23626807,105620.0,105610.0,0.0001421]
[1750035718080,5.22680098,105620.0,105610.0,0.0001421]
[1750035718289,5.22780098,105620.0,105610.0,0.0031421]
[1750035718750,5.40769178,105620.0,105610.0,0.0031421]
[1750035718955,5.39822424,105620.0,105610.0,0.0031421]
[1750035719594,5.39722424,105620.0,105610.0,0.0001421]
[1750035719806,5.42670424,105620.0,105610.0,0.0011421]
[1750035720005,5.41723643,105620.0,105610.0,0.0001421]
[1750035720421,5.41823643,105620.0,105610.0,0.0011421]
[1750035724112,5.45911643,105620.0,105610.0,0.0011421]
[1750035724364,4.86687282,105620.0,105610.0,0.0011421]
[1750035724628,4.9729714,105620.0,105610.0,0.0011421]
[1750035724891,4.96350377,105620.0,105610.0,0.0011421]